[Event "Titled Tuesday Blitz September 28 2021"]
[White "Aldokhin, Ivan"]
[Black "Terry, Renato"]
[WhiteFideId "24115720"]
[BlackFideId "3803457"]
[WhiteElo "2265"]
[BlackElo "2577"]
[Result "0-1"]
[Round "05"]
[TimeControl "180+1"]
[Date "2021.09.28"]
[WhiteClock "0:00:02"]
[BlackClock "0:00:21"]

1. e4 {[%clk 0:03:00]}  c6 {[%clk 0:02:44]} 2. Nc3 {[%clk 0:02:58]}  d5 {[%clk 0:02:44]} 3. Nf3 {[%clk 0:02:59]}  g6 {[%clk 0:02:43]} 4. h3 {[%clk 0:02:59]}  Bg7 {[%clk 0:02:38]} 5. d4 {[%clk 0:02:59]}  Nh6 {[%clk 0:02:38]} 6. Bf4 {[%clk 0:02:52]}  f6 {[%clk 0:02:37]} 7. Qd2 {[%clk 0:02:38]}  Nf7 {[%clk 0:02:37]} 8. Bd3 {[%clk 0:02:33]}  O-O {[%clk 0:02:36]} 9. O-O-O {[%clk 0:02:32]}  e5 {[%clk 0:02:35]} 10. Bh2 {[%clk 0:02:21]}  Bh6 {[%clk 0:02:32]} 11. Qxh6 {[%clk 0:02:08]}  Nxh6 {[%clk 0:02:31]} 12. dxe5 {[%clk 0:02:08]}  f5 {[%clk 0:02:01]} 13. exd5 {[%clk 0:02:06]}  cxd5 {[%clk 0:02:02]} 14. Bb5 {[%clk 0:01:50]}  Be6 {[%clk 0:01:52]} 15. Nd4 {[%clk 0:01:47]}  Bd7 {[%clk 0:01:34]} 16. Nxd5 {[%clk 0:01:40]}  Bxb5 {[%clk 0:01:09]} 17. Nxb5 {[%clk 0:01:22]}  Qa5 {[%clk 0:01:09]} 18. Nbc7 {[%clk 0:01:15]}  Nc6 {[%clk 0:01:06]} 19. Nxa8 {[%clk 0:01:12]}  Rxa8 {[%clk 0:01:05]} 20. Nf6+ {[%clk 0:01:08]}  Kg7 {[%clk 0:00:50]} 21. Rd7+ {[%clk 0:00:58]}  Nf7 {[%clk 0:00:50]} 22. e6 {[%clk 0:00:21]}  Kxf6 {[%clk 0:00:51]} 23. exf7 {[%clk 0:00:20]}  Rf8 {[%clk 0:00:39]} 24. Rhd1 {[%clk 0:00:12]}  Rxf7 {[%clk 0:00:38]} 25. R7d6+ {[%clk 0:00:07]}  Kg7 {[%clk 0:00:39]} 26. a3 {[%clk 0:00:08]}  Qc5 {[%clk 0:00:36]} 27. R1d2 {[%clk 0:00:08]}  Re7 {[%clk 0:00:36]} 28. Kb1 {[%clk 0:00:07]}  Re1+ {[%clk 0:00:33]} 29. Rd1 {[%clk 0:00:05]}  Rxd1+ {[%clk 0:00:33]} 30. Rxd1 {[%clk 0:00:06]}  Qxf2 {[%clk 0:00:29]} 31. Rd7+ {[%clk 0:00:06]}  Kg8 {[%clk 0:00:29]} 32. Bd6 {[%clk 0:00:05]}  Qxg2 {[%clk 0:00:25]} 33. b3 {[%clk 0:00:05]}  Qd5 {[%clk 0:00:23]} 34. h4 {[%clk 0:00:02]}  f4 {[%clk 0:00:22]} 35. h5 {[%clk 0:00:01]}  gxh5 {[%clk 0:00:22]} 36. a4 {[%clk 0:00:02]}  f3 {[%clk 0:00:22]} 37. c4 {[%clk 0:00:02]}  Qd3+ {[%clk 0:00:22]} 38. Ka2 {[%clk 0:00:03]}  f2 {[%clk 0:00:23]} 39. Rc7 {[%clk 0:00:02]}  Qxd6 {[%clk 0:00:21]} 0-1


[Site "https://www.chess.com"]

[Event "Titled Tuesday Blitz September 28 2021"]
[White "Assaubayeva, Bibisara"]
[Black "Moskvin, Anatoly"]
[WhiteFideId "13708694"]
[BlackFideId "24199990"]
[WhiteElo "2232"]
[BlackElo "2098"]
[Result "1-0"]
[Round "05"]
[TimeControl "180+1"]
[Date "2021.09.28"]
[WhiteClock "0:01:15"]
[BlackClock "0:00:45"]

1. d4 {[%clk 0:03:00]}  d5 {[%clk 0:02:59]} 2. c4 {[%clk 0:03:00]}  e5 {[%clk 0:02:59]} 3. dxe5 {[%clk 0:03:00]}  d4 {[%clk 0:03:00]} 4. Nf3 {[%clk 0:02:57]}  Nc6 {[%clk 0:03:01]} 5. a3 {[%clk 0:02:55]}  f6 {[%clk 0:02:59]} 6. exf6 {[%clk 0:02:48]}  Nxf6 {[%clk 0:03:00]} 7. e3 {[%clk 0:02:46]}  Bg4 {[%clk 0:02:48]} 8. Be2 {[%clk 0:02:44]}  dxe3 {[%clk 0:02:41]} 9. Qxd8+ {[%clk 0:02:42]}  Rxd8 {[%clk 0:02:42]} 10. Bxe3 {[%clk 0:02:41]}  a5 {[%clk 0:02:37]} 11. Nc3 {[%clk 0:02:37]}  Be7 {[%clk 0:02:05]} 12. h3 {[%clk 0:02:34]}  Be6 {[%clk 0:02:03]} 13. Nb5 {[%clk 0:02:32]}  Rd7 {[%clk 0:01:57]} 14. O-O {[%clk 0:02:30]}  O-O {[%clk 0:01:54]} 15. Rad1 {[%clk 0:02:30]}  Rfd8 {[%clk 0:01:52]} 16. Rxd7 {[%clk 0:02:29]}  Rxd7 {[%clk 0:01:52]} 17. Nfd4 {[%clk 0:02:24]}  Nxd4 {[%clk 0:01:50]} 18. Nxd4 {[%clk 0:02:21]}  Bf7 {[%clk 0:01:50]} 19. b3 {[%clk 0:02:07]}  Bxa3 {[%clk 0:01:47]} 20. Bf3 {[%clk 0:01:58]}  Bb2 {[%clk 0:01:38]} 21. Rd1 {[%clk 0:01:45]}  c6 {[%clk 0:01:25]} 22. Nf5 {[%clk 0:01:30]}  Rxd1+ {[%clk 0:01:24]} 23. Bxd1 {[%clk 0:01:31]}  a4 {[%clk 0:01:21]} 24. bxa4 {[%clk 0:01:29]}  Bxc4 {[%clk 0:01:21]} 25. Nd6 {[%clk 0:01:29]}  b5 {[%clk 0:00:59]} 26. Nxc4 {[%clk 0:01:25]}  bxc4 {[%clk 0:00:59]} 27. a5 {[%clk 0:01:25]}  Ne8 {[%clk 0:00:51]} 28. a6 {[%clk 0:01:24]}  Nc7 {[%clk 0:00:49]} 29. a7 {[%clk 0:01:20]}  Be5 {[%clk 0:00:49]} 30. Bf3 {[%clk 0:01:15]}  c3 {[%clk 0:00:48]} 31. Bxc6 {[%clk 0:01:14]}  c2 {[%clk 0:00:47]} 32. Bc1 {[%clk 0:01:14]}  Kf7 {[%clk 0:00:44]} 33. a8=Q {[%clk 0:01:14]}  Nxa8 {[%clk 0:00:45]} 34. Bxa8 {[%clk 0:01:15]} 1-0


[Site "https://www.chess.com"]

[Event "Titled Tuesday Blitz September 28 2021"]
[White "Atanasov, Anthony"]
[Black "Begmuratov, Khumoyun"]
[WhiteFideId "2623897"]
[BlackFideId "14210207"]
[WhiteElo "1928"]
[BlackElo "1948"]
[Result "0-1"]
[Round "05"]
[TimeControl "180+1"]
[Date "2021.09.28"]
[WhiteClock "0:00:02"]
[BlackClock "0:01:02"]

1. d4 {[%clk 0:02:21]}  Nf6 {[%clk 0:02:58]} 2. Bf4 {[%clk 0:02:18]}  g6 {[%clk 0:02:57]} 3. e3 {[%clk 0:02:15]}  Bg7 {[%clk 0:02:57]} 4. Nf3 {[%clk 0:02:12]}  O-O {[%clk 0:02:55]} 5. Be2 {[%clk 0:02:10]}  d6 {[%clk 0:02:55]} 6. O-O {[%clk 0:02:10]}  b6 {[%clk 0:02:54]} 7. c4 {[%clk 0:01:59]}  Bb7 {[%clk 0:02:54]} 8. Nc3 {[%clk 0:01:59]}  Nbd7 {[%clk 0:02:54]} 9. Qc2 {[%clk 0:01:59]}  a6 {[%clk 0:02:45]} 10. e4 {[%clk 0:01:54]}  e6 {[%clk 0:02:35]} 11. h3 {[%clk 0:01:51]}  Qe7 {[%clk 0:02:34]} 12. d5 {[%clk 0:01:46]}  e5 {[%clk 0:02:30]} 13. Be3 {[%clk 0:01:46]}  a5 {[%clk 0:02:29]} 14. Nb5 {[%clk 0:01:44]}  Nc5 {[%clk 0:02:24]} 15. Nd2 {[%clk 0:01:39]}  Ne8 {[%clk 0:02:09]} 16. a3 {[%clk 0:01:08]}  a4 {[%clk 0:02:01]} 17. Nc3 {[%clk 0:00:56]}  f5 {[%clk 0:01:57]} 18. f3 {[%clk 0:00:54]}  Nf6 {[%clk 0:01:53]} 19. Bxc5 {[%clk 0:00:54]}  bxc5 {[%clk 0:01:52]} 20. Nxa4 {[%clk 0:00:54]}  Nh5 {[%clk 0:01:52]} 21. Nc3 {[%clk 0:00:51]}  Qg5 {[%clk 0:01:51]} 22. Rf2 {[%clk 0:00:24]}  Bh6 {[%clk 0:01:43]} 23. Nf1 {[%clk 0:00:20]}  Qh4 {[%clk 0:01:43]} 24. Qb3 {[%clk 0:00:14]}  Rab8 {[%clk 0:01:37]} 25. Qc2 {[%clk 0:00:10]}  Bc8 {[%clk 0:01:37]} 26. Rb1 {[%clk 0:00:07]}  Bf4 {[%clk 0:01:29]} 27. Bd3 {[%clk 0:00:04]}  Ng3 {[%clk 0:01:19]} 28. Ne2 {[%clk 0:00:02]}  Nxf1 {[%clk 0:01:17]} 29. Rfxf1 {[%clk 0:00:02]}  Be3+ {[%clk 0:01:05]} 30. Kh2 {[%clk 0:00:02]}  f4 {[%clk 0:01:02]} 0-1


[Site "https://www.chess.com"]

[Event "Titled Tuesday Blitz September 28 2021"]
[White "Avila Pavas, Santiago"]
[Black "Azarov, Sergei"]
[WhiteFideId "4437128"]
[BlackFideId "13501470"]
[WhiteElo "2292"]
[BlackElo "2494"]
[Result "0-1"]
[Round "05"]
[TimeControl "180+1"]
[Date "2021.09.28"]
[WhiteClock "0:00:38"]
[BlackClock "0:00:44"]

1. d4 {[%clk 0:03:00]}  f5 {[%clk 0:02:59]} 2. e4 {[%clk 0:02:59]}  fxe4 {[%clk 0:02:58]} 3. Nc3 {[%clk 0:02:59]}  Nf6 {[%clk 0:02:57]} 4. Bg5 {[%clk 0:02:59]}  g6 {[%clk 0:02:57]} 5. f3 {[%clk 0:02:47]}  d5 {[%clk 0:02:57]} 6. fxe4 {[%clk 0:02:45]}  dxe4 {[%clk 0:02:58]} 7. Bc4 {[%clk 0:02:41]}  Bf5 {[%clk 0:02:57]} 8. Nge2 {[%clk 0:02:41]}  Nbd7 {[%clk 0:02:55]} 9. Qd2 {[%clk 0:02:39]}  Nb6 {[%clk 0:02:55]} 10. Bb3 {[%clk 0:02:39]}  Qd7 {[%clk 0:02:53]} 11. O-O-O {[%clk 0:02:36]}  O-O-O {[%clk 0:02:50]} 12. h3 {[%clk 0:02:29]}  h5 {[%clk 0:02:46]} 13. Ng3 {[%clk 0:02:28]}  Bg7 {[%clk 0:02:43]} 14. Rhe1 {[%clk 0:02:26]}  Kb8 {[%clk 0:02:09]} 15. d5 {[%clk 0:01:50]}  Rhf8 {[%clk 0:01:07]} 16. Ngxe4 {[%clk 0:01:43]}  Nxe4 {[%clk 0:01:06]} 17. Nxe4 {[%clk 0:01:44]}  Bxe4 {[%clk 0:01:05]} 18. Rxe4 {[%clk 0:01:43]}  Bf6 {[%clk 0:01:05]} 19. Bf4 {[%clk 0:01:39]}  Nc8 {[%clk 0:01:01]} 20. Ba4 {[%clk 0:01:06]}  Qf5 {[%clk 0:01:00]} 21. Rb4 {[%clk 0:01:06]}  Nb6 {[%clk 0:00:58]} 22. Bb3 {[%clk 0:00:49]}  g5 {[%clk 0:00:54]} 23. Bh2 {[%clk 0:00:47]}  Be5 {[%clk 0:00:51]} 24. Bxe5 {[%clk 0:00:42]}  Qxe5 {[%clk 0:00:52]} 25. Re1 {[%clk 0:00:42]}  Qd6 {[%clk 0:00:46]} 26. Qxg5 {[%clk 0:00:38]}  Qxb4 {[%clk 0:00:44]} 0-1


[Site "https://www.chess.com"]

[Event "Titled Tuesday Blitz September 28 2021"]
[White "Baskin, Robert"]
[Black "Yoo, Christopher Woojin"]
[WhiteFideId "24662402"]
[BlackFideId "30909694"]
[WhiteElo "2521"]
[BlackElo "2105"]
[Result "0-1"]
[Round "05"]
[TimeControl "180+1"]
[Date "2021.09.28"]
[WhiteClock "0:00:04"]
[BlackClock "0:00:05"]

1. e4 {[%clk 0:03:00]}  d6 {[%clk 0:02:59]} 2. d4 {[%clk 0:03:00]}  Nf6 {[%clk 0:02:59]} 3. Nc3 {[%clk 0:03:00]}  g6 {[%clk 0:02:59]} 4. f4 {[%clk 0:02:56]}  Bg7 {[%clk 0:02:59]} 5. Nf3 {[%clk 0:02:55]}  O-O {[%clk 0:02:59]} 6. Bd3 {[%clk 0:02:56]}  Nc6 {[%clk 0:02:59]} 7. e5 {[%clk 0:02:56]}  dxe5 {[%clk 0:02:59]} 8. fxe5 {[%clk 0:02:57]}  Nh5 {[%clk 0:02:57]} 9. Be3 {[%clk 0:02:54]}  Bg4 {[%clk 0:02:56]} 10. Be2 {[%clk 0:02:54]}  f6 {[%clk 0:02:56]} 11. exf6 {[%clk 0:02:30]}  exf6 {[%clk 0:02:57]} 12. d5 {[%clk 0:02:30]}  Ne7 {[%clk 0:02:53]} 13. Qd3 {[%clk 0:02:27]}  Nf5 {[%clk 0:02:33]} 14. Bd2 {[%clk 0:02:25]}  c6 {[%clk 0:01:36]} 15. O-O-O {[%clk 0:02:11]}  Kh8 {[%clk 0:01:07]} 16. Qc4 {[%clk 0:01:59]}  Bxf3 {[%clk 0:01:02]} 17. Bxf3 {[%clk 0:02:00]}  cxd5 {[%clk 0:01:03]} 18. Qxd5 {[%clk 0:01:46]}  Qxd5 {[%clk 0:00:25]} 19. Nxd5 {[%clk 0:01:39]}  Bh6 {[%clk 0:00:20]} 20. g4 {[%clk 0:01:19]}  Bxd2+ {[%clk 0:00:18]} 21. Rxd2 {[%clk 0:01:19]}  Nh4 {[%clk 0:00:19]} 22. gxh5 {[%clk 0:01:16]}  Nxf3 {[%clk 0:00:19]} 23. Rf2 {[%clk 0:01:16]}  Ne5 {[%clk 0:00:18]} 24. hxg6 {[%clk 0:01:13]}  hxg6 {[%clk 0:00:19]} 25. Nxf6 {[%clk 0:01:06]}  Kg7 {[%clk 0:00:18]} 26. Ne4 {[%clk 0:01:05]}  Rxf2 {[%clk 0:00:18]} 27. Nxf2 {[%clk 0:01:06]}  Rf8 {[%clk 0:00:16]} 28. Ne4 {[%clk 0:01:05]}  b6 {[%clk 0:00:10]} 29. b3 {[%clk 0:00:57]}  Rf4 {[%clk 0:00:09]} 30. Nc3 {[%clk 0:00:44]}  Rf2 {[%clk 0:00:07]} 31. Re1 {[%clk 0:00:40]}  Nc6 {[%clk 0:00:05]} 32. Re2 {[%clk 0:00:32]}  Rf3 {[%clk 0:00:05]} 33. Kb2 {[%clk 0:00:32]}  Kf7 {[%clk 0:00:02]} 34. Rd2 {[%clk 0:00:30]}  Ke6 {[%clk 0:00:02]} 35. Nb5 {[%clk 0:00:30]}  Ke5 {[%clk 0:00:02]} 36. Rd6 {[%clk 0:00:25]}  Rf6 {[%clk 0:00:02]} 37. Rd7 {[%clk 0:00:21]}  Rf2 {[%clk 0:00:01]} 38. Rc7 {[%clk 0:00:17]}  Nb4 {[%clk 0:00:02]} 39. Nxa7 {[%clk 0:00:17]}  Rxh2 {[%clk 0:00:02]} 40. Nc6+ {[%clk 0:00:16]}  Kd6 {[%clk 0:00:02]} 41. Rg7 {[%clk 0:00:11]}  Rxc2+ {[%clk 0:00:02]} 42. Ka3 {[%clk 0:00:11]}  Nxc6 {[%clk 0:00:02]} 43. Rxg6+ {[%clk 0:00:12]}  Kc7 {[%clk 0:00:03]} 44. Rg7+ {[%clk 0:00:12]}  Kd6 {[%clk 0:00:02]} 45. Rg6+ {[%clk 0:00:12]}  Kd5 {[%clk 0:00:02]} 46. Rg5+ {[%clk 0:00:13]}  Ne5 {[%clk 0:00:02]} 47. Rh5 {[%clk 0:00:12]}  Rc5 {[%clk 0:00:03]} 48. Rh6 {[%clk 0:00:12]}  Ra5+ {[%clk 0:00:03]} 49. Kb4 {[%clk 0:00:08]}  Nc6+ {[%clk 0:00:03]} 50. Kc3 {[%clk 0:00:08]}  Rxa2 {[%clk 0:00:03]} 51. Rh5+ {[%clk 0:00:07]}  Kd6 {[%clk 0:00:04]} 52. Rh6+ {[%clk 0:00:08]}  Kd7 {[%clk 0:00:04]} 53. Rh7+ {[%clk 0:00:08]}  Ne7 {[%clk 0:00:04]} 54. Kc4 {[%clk 0:00:08]}  Ra5 {[%clk 0:00:02]} 55. b4 {[%clk 0:00:08]}  Rf5 {[%clk 0:00:02]} 56. Rh6 {[%clk 0:00:08]}  b5+ {[%clk 0:00:03]} 57. Kb3 {[%clk 0:00:08]}  Nc6 {[%clk 0:00:03]} 58. Rh7+ {[%clk 0:00:08]}  Kd6 {[%clk 0:00:04]} 59. Rh6+ {[%clk 0:00:08]}  Kd5 {[%clk 0:00:04]} 60. Rh4 {[%clk 0:00:08]}  Rf3+ {[%clk 0:00:04]} 61. Kb2 {[%clk 0:00:08]}  Nd4 {[%clk 0:00:05]} 62. Rh2 {[%clk 0:00:06]}  Kc4 {[%clk 0:00:05]} 63. Ka2 {[%clk 0:00:06]}  Kxb4 {[%clk 0:00:04]} 64. Rb2+ {[%clk 0:00:07]}  Kc4 {[%clk 0:00:04]} 65. Rh2 {[%clk 0:00:07]}  b4 {[%clk 0:00:05]} 66. Kb2 {[%clk 0:00:07]}  Rb3+ {[%clk 0:00:05]} 67. Ka2 {[%clk 0:00:06]}  Ra3+ {[%clk 0:00:05]} 68. Kb2 {[%clk 0:00:06]}  Rc3 {[%clk 0:00:06]} 69. Ka2 {[%clk 0:00:07]}  b3+ {[%clk 0:00:06]} 70. Kb1 {[%clk 0:00:06]}  Rc2 {[%clk 0:00:06]} 71. Rh3 {[%clk 0:00:06]}  Rf2 {[%clk 0:00:05]} 72. Rh4 {[%clk 0:00:05]}  Kc3 {[%clk 0:00:05]} 73. Rh3+ {[%clk 0:00:06]}  Nf3 {[%clk 0:00:05]} 74. Rh1 {[%clk 0:00:05]}  Nd2+ {[%clk 0:00:05]} 75. Ka1 {[%clk 0:00:04]}  Rf1+ {[%clk 0:00:05]} 0-1


[Site "https://www.chess.com"]

[Event "Titled Tuesday Blitz September 28 2021"]
[White "Bologan, Victor"]
[Black "Aghasiyev, Kamal"]
[WhiteFideId "13900048"]
[BlackFideId "13402854"]
[WhiteElo "2511"]
[BlackElo "2210"]
[Result "1-0"]
[Round "05"]
[TimeControl "180+1"]
[Date "2021.09.28"]
[WhiteClock "0:01:21"]
[BlackClock "0:00:06"]

1. e4 {[%clk 0:02:59]}  e5 {[%clk 0:02:59]} 2. Nf3 {[%clk 0:02:58]}  Nc6 {[%clk 0:02:59]} 3. Bc4 {[%clk 0:02:58]}  Bc5 {[%clk 0:02:58]} 4. c3 {[%clk 0:02:56]}  Nf6 {[%clk 0:02:57]} 5. d3 {[%clk 0:02:57]}  d6 {[%clk 0:02:54]} 6. O-O {[%clk 0:02:55]}  a6 {[%clk 0:02:54]} 7. a4 {[%clk 0:02:55]}  Ba7 {[%clk 0:02:52]} 8. a5 {[%clk 0:02:54]}  O-O {[%clk 0:02:47]} 9. h3 {[%clk 0:02:54]}  Ne7 {[%clk 0:02:46]} 10. Bg5 {[%clk 0:02:50]}  Ng6 {[%clk 0:02:45]} 11. Nh4 {[%clk 0:02:50]}  Nxh4 {[%clk 0:02:37]} 12. Bxh4 {[%clk 0:02:49]}  Be6 {[%clk 0:02:34]} 13. Qf3 {[%clk 0:02:47]}  h6 {[%clk 0:02:19]} 14. Bxf6 {[%clk 0:02:46]}  Qxf6 {[%clk 0:02:19]} 15. Qxf6 {[%clk 0:02:45]}  gxf6 {[%clk 0:02:19]} 16. g4 {[%clk 0:02:44]}  h5 {[%clk 0:02:13]} 17. Kh2 {[%clk 0:02:42]}  Rad8 {[%clk 0:02:04]} 18. Nd2 {[%clk 0:02:39]}  d5 {[%clk 0:02:02]} 19. exd5 {[%clk 0:02:34]}  Bxd5 {[%clk 0:02:02]} 20. Bxd5 {[%clk 0:02:34]}  Rxd5 {[%clk 0:02:01]} 21. Ne4 {[%clk 0:02:34]}  Rxd3 {[%clk 0:01:51]} 22. Nxf6+ {[%clk 0:02:27]}  Kg7 {[%clk 0:01:51]} 23. Nxh5+ {[%clk 0:02:27]}  Kg6 {[%clk 0:01:51]} 24. Ng3 {[%clk 0:02:16]}  Rh8 {[%clk 0:01:22]} 25. Kg2 {[%clk 0:02:12]}  e4 {[%clk 0:00:38]} 26. Rae1 {[%clk 0:01:56]}  e3 {[%clk 0:00:36]} 27. f4 {[%clk 0:01:52]}  Rd2+ {[%clk 0:00:34]} 28. Re2 {[%clk 0:01:51]}  Rhd8 {[%clk 0:00:23]} 29. Kf3 {[%clk 0:01:50]}  Rxe2 {[%clk 0:00:22]} 30. Nxe2 {[%clk 0:01:49]}  Rd2 {[%clk 0:00:23]} 31. b4 {[%clk 0:01:48]}  Rc2 {[%clk 0:00:15]} 32. h4 {[%clk 0:01:42]}  c5 {[%clk 0:00:15]} 33. Rb1 {[%clk 0:01:32]}  c4 {[%clk 0:00:14]} 34. h5+ {[%clk 0:01:31]}  Kh7 {[%clk 0:00:13]} 35. b5 {[%clk 0:01:29]}  Bc5 {[%clk 0:00:12]} 36. bxa6 {[%clk 0:01:28]}  bxa6 {[%clk 0:00:13]} 37. Rb7 {[%clk 0:01:28]}  Kg7 {[%clk 0:00:13]} 38. Rc7 {[%clk 0:01:25]}  Bd6 {[%clk 0:00:08]} 39. Rxc4 {[%clk 0:01:23]}  Ra2 {[%clk 0:00:08]} 40. Rc6 {[%clk 0:01:22]}  Be7 {[%clk 0:00:06]} 41. Rxa6 {[%clk 0:01:21]} 1-0


[Site "https://www.chess.com"]

[Event "Titled Tuesday Blitz September 28 2021"]
[White "Costachi, Mihnea"]
[Black "Gabrielian, Artur"]
[WhiteFideId "1217518"]
[BlackFideId "4131002"]
[WhiteElo "2482"]
[BlackElo "2489"]
[Result "1-0"]
[Round "05"]
[TimeControl "180+1"]
[Date "2021.09.28"]
[WhiteClock "0:00:05"]
[BlackClock "0:00:09"]

1. d4 {[%clk 0:02:59]}  Nf6 {[%clk 0:03:00]} 2. c4 {[%clk 0:02:58]}  c5 {[%clk 0:03:00]} 3. d5 {[%clk 0:02:57]}  e6 {[%clk 0:03:01]} 4. Nc3 {[%clk 0:02:57]}  exd5 {[%clk 0:03:01]} 5. cxd5 {[%clk 0:02:57]}  d6 {[%clk 0:03:02]} 6. Nf3 {[%clk 0:02:58]}  g6 {[%clk 0:03:02]} 7. Nd2 {[%clk 0:02:59]}  Nbd7 {[%clk 0:03:02]} 8. e4 {[%clk 0:02:59]}  Bg7 {[%clk 0:03:03]} 9. Be2 {[%clk 0:02:59]}  O-O {[%clk 0:03:03]} 10. O-O {[%clk 0:03:00]}  Re8 {[%clk 0:03:04]} 11. h3 {[%clk 0:03:00]}  g5 {[%clk 0:02:54]} 12. Nc4 {[%clk 0:02:55]}  Nxe4 {[%clk 0:02:46]} 13. Nxe4 {[%clk 0:02:54]}  Rxe4 {[%clk 0:02:47]} 14. Nxd6 {[%clk 0:02:54]}  Rd4 {[%clk 0:02:47]} 15. Qc2 {[%clk 0:02:40]}  Ne5 {[%clk 0:02:44]} 16. Nf5 {[%clk 0:02:26]}  Bxf5 {[%clk 0:02:42]} 17. Qxf5 {[%clk 0:02:25]}  Rxd5 {[%clk 0:02:33]} 18. Bxg5 {[%clk 0:02:17]}  Qxg5 {[%clk 0:02:27]} 19. Qxg5 {[%clk 0:02:17]}  Nf3+ {[%clk 0:02:28]} 20. Bxf3 {[%clk 0:02:17]}  Rxg5 {[%clk 0:02:28]} 21. Rad1 {[%clk 0:02:06]}  Bxb2 {[%clk 0:01:59]} 22. Rb1 {[%clk 0:01:53]}  Bd4 {[%clk 0:01:59]} 23. Rxb7 {[%clk 0:01:54]}  Re5 {[%clk 0:01:39]} 24. Rfb1 {[%clk 0:01:48]}  Rae8 {[%clk 0:01:37]} 25. Rxa7 {[%clk 0:01:43]}  Re1+ {[%clk 0:01:37]} 26. Rxe1 {[%clk 0:01:43]}  Rxe1+ {[%clk 0:01:37]} 27. Kh2 {[%clk 0:01:44]}  c4 {[%clk 0:01:29]} 28. Ra8+ {[%clk 0:01:40]}  Kg7 {[%clk 0:01:28]} 29. Rc8 {[%clk 0:01:33]}  c3 {[%clk 0:01:29]} 30. Bd5 {[%clk 0:01:31]}  Be5+ {[%clk 0:01:19]} 31. g3 {[%clk 0:01:28]}  Re2 {[%clk 0:01:19]} 32. Kg2 {[%clk 0:01:23]}  Bd4 {[%clk 0:01:19]} 33. Kf3 {[%clk 0:01:23]}  Rxf2+ {[%clk 0:01:18]} 34. Ke4 {[%clk 0:01:15]}  Bf6 {[%clk 0:01:13]} 35. Rc7 {[%clk 0:01:15]}  c2 {[%clk 0:00:41]} 36. Bb3 {[%clk 0:01:01]}  Bg5 {[%clk 0:00:26]} 37. Rxc2 {[%clk 0:00:49]}  f5+ {[%clk 0:00:24]} 38. Ke5 {[%clk 0:00:44]}  Bf6+ {[%clk 0:00:22]} 39. Ke6 {[%clk 0:00:44]}  Rf3 {[%clk 0:00:23]} 40. g4 {[%clk 0:00:24]}  fxg4 {[%clk 0:00:11]} 41. hxg4 {[%clk 0:00:24]}  Kg6 {[%clk 0:00:12]} 42. Re2 {[%clk 0:00:18]}  Rf4 {[%clk 0:00:10]} 43. Bc2+ {[%clk 0:00:17]}  Kg5 {[%clk 0:00:11]} 44. Bf5 {[%clk 0:00:17]}  Ra4 {[%clk 0:00:11]} 45. Bxh7 {[%clk 0:00:14]}  Ra6+ {[%clk 0:00:10]} 46. Kd5 {[%clk 0:00:11]}  Ra5+ {[%clk 0:00:10]} 47. Kc4 {[%clk 0:00:10]}  Kxg4 {[%clk 0:00:10]} 48. Kb4 {[%clk 0:00:10]}  Ra7 {[%clk 0:00:10]} 49. a4 {[%clk 0:00:09]}  Kf3 {[%clk 0:00:10]} 50. Re6 {[%clk 0:00:07]}  Bg5 {[%clk 0:00:10]} 51. Bd3 {[%clk 0:00:05]}  Bd2+ {[%clk 0:00:10]} 52. Kb3 {[%clk 0:00:06]}  Rc7 {[%clk 0:00:10]} 53. Bb5 {[%clk 0:00:05]}  Rc3+ {[%clk 0:00:10]} 54. Kb2 {[%clk 0:00:05]}  Rc5 {[%clk 0:00:10]} 55. Bc6+ {[%clk 0:00:05]}  Kf2 {[%clk 0:00:10]} 56. Kb3 {[%clk 0:00:06]}  Rc3+ {[%clk 0:00:09]} 57. Kb2 {[%clk 0:00:06]}  Rc5 {[%clk 0:00:09]} 58. Bb5 {[%clk 0:00:06]}  Be3 {[%clk 0:00:09]} 59. Rf6+ {[%clk 0:00:06]}  Ke1 {[%clk 0:00:09]} 60. Kb3 {[%clk 0:00:06]}  Bd2 {[%clk 0:00:09]} 61. Rf1# {[%clk 0:00:05]} 1-0


[Site "https://www.chess.com"]

[Event "Titled Tuesday Blitz September 28 2021"]
[White "Damjanovic, Vladimir"]
[Black "Saya, Ethan"]
[WhiteFideId "903795"]
[BlackFideId "26095181"]
[WhiteElo "2374"]
[BlackElo "2217"]
[Result "0-1"]
[Round "05"]
[TimeControl "180+1"]
[Date "2021.09.28"]
[WhiteClock "0:00:02"]
[BlackClock "0:00:12"]

1. e4 {[%clk 0:03:00]}  d5 {[%clk 0:02:59]} 2. Nc3 {[%clk 0:02:52]}  dxe4 {[%clk 0:02:55]} 3. Nxe4 {[%clk 0:02:53]}  Bf5 {[%clk 0:02:55]} 4. Ng3 {[%clk 0:02:53]}  Bg6 {[%clk 0:02:55]} 5. h4 {[%clk 0:02:53]}  h6 {[%clk 0:02:55]} 6. Nf3 {[%clk 0:02:54]}  Nd7 {[%clk 0:02:55]} 7. d4 {[%clk 0:02:53]}  Ngf6 {[%clk 0:02:54]} 8. h5 {[%clk 0:02:48]}  Bh7 {[%clk 0:02:54]} 9. Bd3 {[%clk 0:02:49]}  Bxd3 {[%clk 0:02:53]} 10. Qxd3 {[%clk 0:02:50]}  e6 {[%clk 0:02:53]} 11. Be3 {[%clk 0:02:42]}  c5 {[%clk 0:02:52]} 12. O-O-O {[%clk 0:02:36]}  Qa5 {[%clk 0:02:49]} 13. Kb1 {[%clk 0:02:30]}  Be7 {[%clk 0:02:31]} 14. d5 {[%clk 0:02:09]}  Nxd5 {[%clk 0:02:26]} 15. Nf5 {[%clk 0:02:07]}  Qxa2+ {[%clk 0:02:19]} 16. Kxa2 {[%clk 0:02:01]}  Nb4+ {[%clk 0:02:19]} 17. Kb1 {[%clk 0:02:01]}  Nxd3 {[%clk 0:02:20]} 18. Nxe7 {[%clk 0:01:56]}  Nb4 {[%clk 0:02:14]} 19. Rxd7 {[%clk 0:01:44]}  Kxd7 {[%clk 0:02:13]} 20. Bxc5 {[%clk 0:01:41]}  Na6 {[%clk 0:01:53]} 21. Rd1+ {[%clk 0:01:38]}  Ke8 {[%clk 0:01:53]} 22. Ba3 {[%clk 0:01:32]}  Rd8 {[%clk 0:01:37]} 23. Rxd8+ {[%clk 0:01:31]}  Kxd8 {[%clk 0:01:38]} 24. Ne5 {[%clk 0:01:32]}  Ke8 {[%clk 0:01:31]} 25. Bd6 {[%clk 0:01:22]}  Nc7 {[%clk 0:01:12]} 26. Bxc7 {[%clk 0:01:06]}  Kxe7 {[%clk 0:01:13]} 27. Ba5 {[%clk 0:00:46]}  Kf6 {[%clk 0:01:09]} 28. Bc3 {[%clk 0:00:44]}  Ke7 {[%clk 0:01:09]} 29. Bd4 {[%clk 0:00:37]}  a6 {[%clk 0:01:06]} 30. c3 {[%clk 0:00:34]}  Rc8 {[%clk 0:01:04]} 31. Kc2 {[%clk 0:00:33]}  Rc7 {[%clk 0:00:56]} 32. f4 {[%clk 0:00:31]}  Rc8 {[%clk 0:00:51]} 33. g4 {[%clk 0:00:24]}  Rg8 {[%clk 0:00:49]} 34. Bc5+ {[%clk 0:00:16]}  Ke8 {[%clk 0:00:47]} 35. Kd3 {[%clk 0:00:11]}  g6 {[%clk 0:00:47]} 36. hxg6 {[%clk 0:00:06]}  fxg6 {[%clk 0:00:48]} 37. Nf3 {[%clk 0:00:04]}  h5 {[%clk 0:00:45]} 38. g5 {[%clk 0:00:04]}  Kf7 {[%clk 0:00:41]} 39. Bd4 {[%clk 0:00:05]}  Rc8 {[%clk 0:00:39]} 40. Ne5+ {[%clk 0:00:05]}  Kg7 {[%clk 0:00:39]} 41. Nc4+ {[%clk 0:00:02]}  Kh7 {[%clk 0:00:40]} 42. Nd6 {[%clk 0:00:01]}  Rc7 {[%clk 0:00:38]} 43. Ne4 {[%clk 0:00:02]}  Kg8 {[%clk 0:00:17]} 44. Ke3 {[%clk 0:00:02]}  Kf7 {[%clk 0:00:17]} 45. Nd6+ {[%clk 0:00:01]}  Ke7 {[%clk 0:00:17]} 46. Be5 {[%clk 0:00:02]}  Rd7 {[%clk 0:00:17]} 47. Ne4 {[%clk 0:00:02]}  Rd5 {[%clk 0:00:15]} 48. Bd4 {[%clk 0:00:02]}  Rb5 {[%clk 0:00:15]} 49. b4 {[%clk 0:00:01]}  a5 {[%clk 0:00:15]} 50. c4 {[%clk 0:00:01]}  Rf5 {[%clk 0:00:13]} 51. Bc5+ {[%clk 0:00:02]}  Kd7 {[%clk 0:00:13]} 52. bxa5 {[%clk 0:00:02]}  Kc6 {[%clk 0:00:13]} 53. Bb6 {[%clk 0:00:03]}  h4 {[%clk 0:00:12]} 54. Bd8 {[%clk 0:00:02]}  h3 {[%clk 0:00:12]} 55. Kf3 {[%clk 0:00:02]}  h2 {[%clk 0:00:12]} 56. Kg2 {[%clk 0:00:02]}  Rxf4 {[%clk 0:00:12]} 0-1


[Site "https://www.chess.com"]